[Event "Lueneburg Open-B 2019"]
[Site "Lueneburg"]
[Date "2019.08.05"]
[Round "3.6"]
[White "Krause, Holger"]
[Black "Kasipour Azbari, Seyed Arvin"]
[Result "0-1"]
[ECO "B26"]
[WhiteElo "1639"]
[BlackElo "1765"]
[Annotator "NA"]
[PlyCount "76"]
[EventDate "2019.08.03"]
[EventType "swiss"]
[EventCountry "GER"]
[SourceTitle "playchess.com"]
[Source "ChessBase"]
[SourceQuality "1"]
[TimeControl "40/5400+30:1800+30"]

1. e4 {[%emt 0:00:00]} c5 {[%emt 0:00:26]} 2. Nc3 {[%emt 0:00:00]} Nc6 {[%emt 0:00:13]} 3. g3 {[%emt 0:00:02]} g6 {[%emt 0:00:06]} 4. Bg2 {[%emt 0:00:19]} Bg7 {[%emt 0:00:07]} 5. d3 {[%emt 0:00:17]} d6 {[%emt 0:00:17]} 6. Be3 {[%emt 0:01:16]} Rb8 {[%emt 0:00:15]} 7. Qd2 {[%emt 0:03:04]} b5 {[%emt 0:00:13]} 8. Nge2 {[%emt 0:01:35]} Nd4 {[%emt 0:00:49]} 9. Nd1 {[%emt 0:03:50]} b4 {[%emt 0:01:36]} 10. c3 {[%emt 0:03:06]} Nxe2 {[%emt 0:00:28]} 11. Qxe2 {[%emt 0:00:15]} bxc3 {[%emt 0:02:03]} 12. bxc3 {[%emt 0:03:16]} e5 {[%emt 0:02:34]} 13. O-O {[%emt 0:02:08]} Ne7 {[%emt 0:04:09]} 14. c4 {[%emt 0:04:24]} O-O {[%emt 0:01:30]} 15. Nc3 {[%emt 0:04:36]} f5 {[%emt 0:02:02]} 16. Qd2 {[%emt 0:04:26]} f4 {[%emt 0:00:41]} 17. gxf4 {[%emt 0:01:33]} exf4 {[%emt 0:00:08]} 18. Bxf4 {[%emt 1:04:53]} Bxc3 {[%emt 0:00:23]} 19. Qxc3 {[%emt 0:00:00]} Rxf4 {[%emt 0:00:34]} 20. e5 {[%emt 0:00:00]} Bb7 {[%emt 0:02:17]} 21. Bxb7 {[%emt 0:00:00]} Rxb7 {[%emt 0:00:13]} 22. exd6 {[%emt 0:00:00]} Qxd6 {[%emt 0:00:55]} 23. Rfe1 {[%emt 0:00:00]} Qd4 {[%emt 0:05:22]} 24. Qxd4 {[%emt 0:00:00]} Rxd4 {[%emt 0:00:16]} 25. Re3 {[%emt 0:00:00]} Nf5 {[%emt 0:02:56]} 26. Re8+ {[%emt 0:00:00]} Kf7 {[%emt 0:01:11]} 27. Rc8 {[%emt 0:00:00]} Rxd3 {[%emt 0:01:33]} 28. Rxc5 {[%emt 0:00:00]} Rbd7 {[%emt 0:01:25]} 29. Kf1 {[%emt 0:00:00]} Rd2 {[%emt 0:01:41]} 30. a4 {[%emt 0:00:00]} Rc2 {[%emt 0:02:18]} 31. a5 {[%emt 0:00:00]} Rdd2 {[%emt 0:00:31]} 32. Rc7+ {[%emt 0:00:00]} Kf6 {[%emt 0:00:11]} 33. Rxh7 {[%emt 0:00:00]} Rxf2+ {[%emt 0:00:39]} 34. Kg1 {[%emt 0:00:00]} g5 {[%emt 0:03:33]} 35. Rf1 {[%emt 0:00:00]} Rg2+ {[%emt 0:01:33]} 36. Kh1 {[%emt 0:00:00]} Kg6 {[%emt 0:01:14]} 37. Rxa7 {[%emt 0:00:00]} Rxh2+ {[%emt 0:00:14]} 38. Kg1 {[%emt 0:00:00]} Rcg2# {[%emt 0:00:07]} 0-1

[Event "Lueneburg Open-B 2019"]
[Site "Lueneburg"]
[Date "2019.08.05"]
[Round "3.7"]
[White "Thomas, Jeremy"]
[Black "Kolhoff, Manfred"]
[Result "1-0"]
[ECO "C01"]
[WhiteElo "1717"]
[BlackElo "1616"]
[Annotator "NA"]
[PlyCount "53"]
[EventDate "2019.08.03"]
[EventType "swiss"]
[EventCountry "GER"]
[SourceTitle "playchess.com"]
[Source "ChessBase"]
[SourceQuality "1"]
[TimeControl "40/5400+30:1800+30"]

1. e4 {[%emt 0:00:00]} e6 {[%emt 0:00:00]} 2. d4 {[%emt 0:01:25]} d5 {[%emt 0:00:00]} 3. exd5 {[%emt 0:00:56]} exd5 {[%emt 0:00:00]} 4. Nf3 {[%emt 0:00:08]} Nf6 {[%emt 0:00:57]} 5. Bd3 {[%emt 0:00:12]} h6 {[%emt 0:07:11]} 6. Bf4 {[%emt 0:00:53]} Bd6 {[%emt 0:00:38]} 7. Bg3 {[%emt 0:01:54]} Be6 {[%emt 0:00:35]} 8. Ne5 {[%emt 0:01:02]} Nbd7 {[%emt 0:11:18]} 9. O-O {[%emt 0:00:41]} O-O {[%emt 0:09:44]} 10. f4 {[%emt 0:02:59]} Nb6 {[%emt 0:01:53]} 11. Nd2 {[%emt 0:01:02]} c5 {[%emt 0:04:28]} 12. c3 {[%emt 0:00:35]} Qc7 {[%emt 0:02:25]} 13. f5 {[%emt 0:02:51]} Bd7 {[%emt 0:01:26]} 14. Ndf3 {[%emt 0:07:07]} Rad8 {[%emt 0:00:43]} 15. Bh4 {[%emt 0:01:18]} Be7 {[%emt 0:03:38]} 16. h3 {[%emt 0:12:29]} Nc8 {[%emt 0:00:34]} 17. a3 {[%emt 0:09:51]} Nd6 {[%emt 0:00:17]} 18. Nxd7 {[%emt 0:01:29]} Rxd7 {[%emt 0:00:23]} 19. Ne5 {[%emt 0:00:55]} Rdd8 {[%emt 0:00:12]} 20. Bxf6 {[%emt 0:02:26]} Bxf6 {[%emt 0:00:51]} 21. Ng4 {[%emt 0:00:14]} Bg5 {[%emt 0:07:32]} 22. f6 {[%emt 0:01:19]} g6 {[%emt 0:07:29]} 23. h4 {[%emt 0:03:26]} Bxh4 {[%emt 0:03:05]} 24. Nxh6+ {[%emt 0:00:29]} Kh7 {[%emt 0:02:48]} 25. Qg4 {[%emt 0:00:34]} Bxf6 {[%emt 0:06:40]} 26. Rxf6 {[%emt 0:00:29]} Kxh6 {[%emt 0:01:13]} 27. Rxg6+ {[%emt 0:00:21]} 1-0

[Event "Lueneburg Open-B 2019"]
[Site "Lueneburg"]
[Date "2019.08.05"]
[Round "3.8"]
[White "Stolzenwald, Karl-Heinz"]
[Black "Rewerts, Ingo"]
[Result "0-1"]
[ECO "A00"]
[WhiteElo "1600"]
[BlackElo "1792"]
[Annotator "NA"]
[PlyCount "98"]
[EventDate "2019.08.03"]
[EventType "swiss"]
[EventCountry "GER"]
[SourceTitle "playchess.com"]
[Source "ChessBase"]
[SourceQuality "1"]
[TimeControl "40/5400+30:1800+30"]

1. b4 {[%emt 0:00:00]} c6 {[%emt 0:00:00]} 2. Bb2 {[%emt 0:00:20]} d5 {[%emt 0:00:00]} 3. Nf3 {[%emt 0:00:12]} Bg4 {[%emt 0:00:11]} 4. e3 {[%emt 0:00:30]} Nd7 {[%emt 0:01:35]} 5. Be2 {[%emt 0:00:11]} e6 {[%emt 0:00:14]} 6. a4 {[%emt 0:00:53]} Ngf6 {[%emt 0:00:21]} 7. h3 {[%emt 0:00:21]} Bxf3 {[%emt 0:00:38]} 8. Bxf3 {[%emt 0:00:24]} Bxb4 {[%emt 0:00:17]} 9. O-O {[%emt 0:00:15]} O-O {[%emt 0:00:40]} 10. d3 {[%emt 0:00:28]} Qb6 {[%emt 0:02:09]} 11. Nc3 {[%emt 0:02:40]} a5 {[%emt 0:07:55]} 12. Rb1 {[%emt 0:00:24]} Qc7 {[%emt 0:12:42]} 13. Be2 {[%emt 0:06:08]} Nc5 {[%emt 0:03:14]} 14. Ra1 {[%emt 0:02:19]} e5 {[%emt 0:06:13]} 15. Na2 {[%emt 0:04:51]} Nxa4 {[%emt 0:03:12]} 16. Nxb4 {[%emt 0:03:22]} Nxb2 {[%emt 0:00:33]} 17. Qc1 {[%emt 0:00:15]} axb4 {[%emt 0:01:01]} 18. Qxb2 {[%emt 0:00:12]} Qd6 {[%emt 0:01:19]} 19. c3 {[%emt 0:02:27]} bxc3 {[%emt 0:01:25]} 20. Qxc3 {[%emt 0:00:11]} d4 {[%emt 0:01:11]} 21. Qb3 {[%emt 0:01:37]} b5 {[%emt 0:02:12]} 22. exd4 {[%emt 0:01:23]} Qxd4 {[%emt 0:01:07]} 23. Rac1 {[%emt 0:00:14]} Rac8 {[%emt 0:02:33]} 24. Bf3 {[%emt 0:00:28]} Nd5 {[%emt 0:01:34]} 25. g3 {[%emt 0:05:20]} Rfd8 {[%emt 0:02:18]} 26. Rfe1 {[%emt 0:02:53]} f5 {[%emt 0:06:37]} 27. Rc2 {[%emt 0:02:03]} Kf8 {[%emt 0:04:06]} 28. Rec1 {[%emt 0:03:45]} Nb4 {[%emt 0:05:52]} 29. Rd2 {[%emt 0:04:11]} e4 {[%emt 0:02:19]} 30. Qe6 {[%emt 0:12:18]} exf3 {[%emt 0:03:37]} 31. Qxf5+ {[%emt 0:00:11]} Kg8 {[%emt 0:01:07]} 32. Re1 {[%emt 0:01:46]} Rf8 {[%emt 0:01:39]} 33. Qe6+ {[%emt 0:00:25]} Kh8 {[%emt 0:00:23]} 34. Re4 {[%emt 0:01:43]} Qc3 {[%emt 0:01:51]} 35. Rd1 {[%emt 0:00:41]} h6 {[%emt 0:00:43]} 36. Rf4 {[%emt 0:02:14]} Rfe8 {[%emt 0:01:31]} 37. Qf5 {[%emt 0:00:50]} Re1+ {[%emt 0:01:52]} 38. Kh2 {[%emt 0:00:25]} Rce8 {[%emt 0:03:06]} 39. Qf7 {[%emt 0:04:44]} g5 {[%emt 0:05:17]} 40. Rxf3 {[%emt 0:00:43]} Qg7 {[%emt 0:00:35]} 41. Qh5 {[%emt 0:30:28]} Kg8 {[%emt 0:31:58]} 42. Rc1 {[%emt 0:03:19]} R1e6 {[%emt 0:04:58]} 43. Rc5 {[%emt 0:03:14]} Rf8 {[%emt 0:02:23]} 44. Qg4 {[%emt 0:00:53]} Rxf3 {[%emt 0:00:41]} 45. Qxf3 {[%emt 0:02:39]} Rf6 {[%emt 0:02:06]} 46. Qe3 {[%emt 0:01:02]} Nd5 {[%emt 0:00:26]} 47. Qe8+ {[%emt 0:01:27]} Qf8 {[%emt 0:00:15]} 48. Qxf8+ {[%emt 0:01:24]} Kxf8 {[%emt 0:00:15]} 49. Kg2 {[%emt 0:00:09]} Ke7 {[%emt 0:00:16]} 0-1

[Event "Lueneburg Open-B 2019"]
[Site "Lueneburg"]
[Date "2019.08.05"]
[Round "3.9"]
[White "Schulze, Lukas"]
[Black "Hinke, Gerhard"]
[Result "1-0"]
[ECO "A33"]
[WhiteElo "1724"]
[BlackElo "1476"]
[Annotator "NA"]
[PlyCount "67"]
[EventDate "2019.08.03"]
[EventType "swiss"]
[EventCountry "GER"]
[SourceTitle "playchess.com"]
[Source "ChessBase"]
[SourceQuality "1"]
[TimeControl "40/5400+30:1800+30"]

1. Nf3 {[%emt 0:00:00]} Nf6 {[%emt 0:00:00]} 2. c4 {[%emt 0:00:00]} c5 {[%emt 0:00:28]} 3. g3 {[%emt 0:00:00]} Nc6 {[%emt 0:00:45]} 4. d4 {[%emt 0:00:52]} cxd4 {[%emt 0:01:22]} 5. Nxd4 {[%emt 0:00:07]} e6 {[%emt 0:01:21]} 6. Nc3 {[%emt 0:08:54]} Bc5 {[%emt 0:03:35]} 7. Ndb5 {[%emt 0:00:58]} O-O {[%emt 0:02:25]} 8. Nd6 {[%emt 0:04:46]} a6 {[%emt 0:02:29]} 9. Bg2 {[%emt 0:02:38]} Qe7 {[%emt 0:01:40]} 10. Nce4 {[%emt 0:10:17]} Nxe4 {[%emt 0:03:58]} 11. Nxe4 {[%emt 0:00:25]} Bb4+ {[%emt 0:01:27]} 12. Bd2 {[%emt 0:00:50]} f5 {[%emt 0:01:58]} 13. Nc3 {[%emt 0:03:12]} Ne5 {[%emt 0:04:47]} 14. Qb3 {[%emt 0:07:41]} Rb8 {[%emt 0:02:03]} 15. Bf4 {[%emt 0:01:53]} Bxc3+ {[%emt 0:08:33]} 16. Qxc3 {[%emt 0:01:34]} d6 {[%emt 0:00:24]} 17. Bxe5 {[%emt 0:04:19]} dxe5 {[%emt 0:00:10]} 18. Qxe5 {[%emt 0:00:15]} Qb4+ {[%emt 0:00:10]} 19. Kf1 {[%emt 0:05:01]} Ra8 {[%emt 0:04:19]} 20. Rc1 {[%emt 0:03:27]} Qe7 {[%emt 0:00:23]} 21. Bf3 {[%emt 0:02:04]} Qf6 {[%emt 0:00:36]} 22. Qxf6 {[%emt 0:00:29]} Rxf6 {[%emt 0:00:16]} 23. Kg2 {[%emt 0:01:12]} Ra7 {[%emt 0:00:53]} 24. Rhd1 {[%emt 0:00:22]} b6 {[%emt 0:00:59]} 25. Rd6 {[%emt 0:01:46]} Bb7 {[%emt 0:02:13]} 26. Rxb6 {[%emt 0:01:22]} Bxf3+ {[%emt 0:00:19]} 27. Kxf3 {[%emt 0:00:33]} g5 {[%emt 0:00:13]} 28. c5 {[%emt 0:01:34]} Rc7 {[%emt 0:04:51]} 29. Rxa6 {[%emt 0:04:10]} Rh6 {[%emt 0:01:24]} 30. Kg2 {[%emt 0:00:59]} Kf7 {[%emt 0:00:28]} 31. b4 {[%emt 0:00:13]} Kf6 {[%emt 0:00:33]} 32. c6 {[%emt 0:00:18]} g4 {[%emt 0:00:37]} 33. b5 {[%emt 0:00:17]} f4 {[%emt 0:00:19]} 34. b6 {[%emt 0:00:09]} 1-0

[Event "Lueneburg Open-B 2019"]
[Site "Lueneburg"]
[Date "2019.08.05"]
[Round "3.10"]
[White "Thomas, Vincent"]
[Black "Ahrens, Gunnar"]
[Result "0-1"]
[ECO "D53"]
[WhiteElo "1975"]
[BlackElo "1764"]
[Annotator "NA"]
[PlyCount "172"]
[EventDate "2019.08.03"]
[EventType "swiss"]
[EventCountry "GER"]
[SourceTitle "playchess.com"]
[Source "ChessBase"]
[SourceQuality "1"]
[TimeControl "40/5400+30:1800+30"]

1. d4 {[%emt 0:01:52]} Nf6 {[%emt 0:00:00]} 2. c4 {[%emt 0:00:49]} d5 {[%emt 0:00:00]} 3. Nf3 {[%emt 0:01:06]} e6 {[%emt 0:00:24]} 4. Bg5 {[%emt 0:02:11]} Be7 {[%emt 0:00:56]} 5. Nc3 {[%emt 0:02:42]} Nbd7 {[%emt 0:00:47]} 6. e3 {[%emt 0:01:59]} c6 {[%emt 0:01:31]} 7. Be2 {[%emt 0:05:28]} dxc4 {[%emt 0:03:11]} 8. Bxc4 {[%emt 0:00:49]} Nb6 {[%emt 0:00:45]} 9. Be2 {[%emt 0:02:48] D53: Queen's Gambit Declined: 4 Bg5 Be7: Early deviations} (9. Bd3 Nbd5 10. O-O h6 11. Bh4 Qa5 12. Qc2 Nb4 13. Qb1 Nxd3 14. Qxd3 Qh5 15. Bg3 O-O 16. a3 a5 {½-½ (50) Heinrich,S (1666)-Partus,E (1421) Pinneberg 2018}) 9... Nbd5 {[%emt 0:00:40]} 10. O-O {[%emt 0:03:53]} O-O {[%emt 0:01:12]} 11. Nd2 $146 {[%emt 0:04:31]} ({Predecessor:} 11. Nxd5 exd5 12. Ne5 Bf5 13. Bd3 Bxd3 14. Qxd3 Ne4 15. Bxe7 Qxe7 16. f3 Nd6 17. Rfe1 Rfe8 {1-0 (61) Krenev,D-Sakhno,P Novosibirsk 2010}) 11... Nxc3 {[%emt 0:02:23]} 12. bxc3 {[%emt 0:00:36]} Nd5 {[%emt 0:00:19]} 13. Bxe7 {[%emt 0:01:23]} Qxe7 {[%emt 0:00:22]} 14. Qb3 {[%emt 0:03:04]} Rd8 {[%emt 0:07:09]} 15. Rab1 {[%emt 0:05:35]} e5 {[%emt 0:02:07]} 16. Nf3 {[%emt 0:03:21]} exd4 {[%emt 0:01:13]} 17. cxd4 {[%emt 0:01:13]} a5 {[%emt 0:03:54]} 18. Ne5 {[%emt 0:06:13]} a4 {[%emt 0:04:36]} 19. Qc4 {[%emt 0:02:38]} Bf5 {[%emt 0:02:44]} 20. Bd3 {[%emt 0:03:27]} Bxd3 {[%emt 0:00:27]} 21. Nxd3 {[%emt 0:00:41]} Rdc8 {[%emt 0:06:37]} 22. Qc5 {[%emt 0:03:43]} Qc7 {[%emt 0:01:27]} 23. Ne5 {[%emt 0:02:29]} Ra5 {[%emt 0:02:09]} 24. Qc4 {[%emt 0:01:42]} b5 {[%emt 0:01:27]} 25. Qc2 {[%emt 0:02:47]} f6 $11 {[%emt 0:05:57]} 26. Nd3 {[%emt 0:01:59]} Qe7 {[%emt 0:01:22]} 27. Qd2 {[%emt 0:05:17]} Ra7 {[%emt 0:00:48]} 28. Nc5 {[%emt 0:01:10]} Nb6 {[%emt 0:02:05]} 29. Rfc1 {[%emt 0:03:09]} Nc4 {[%emt 0:00:39]} 30. Qb4 {[%emt 0:01:48]} a3 {[%emt 0:02:21]} 31. Rb3 {[%emt 0:03:05]} Rca8 {[%emt 0:03:27]} 32. h3 {[%emt 0:04:01]} Qf7 {[%emt 0:03:25]} 33. Ne4 {[%emt 0:05:22]} Rd7 {[%emt 0:14:28]} 34. Qc5 {[%emt 0:02:10]} Qe6 {[%emt 0:01:34]} 35. Qb4 {[%emt 0:02:20]} Qxe4 {[%emt 0:00:38]} 36. f3 {[%emt 0:01:12]} Qd5 {[%emt 0:02:34]} 37. Rd1 {[%emt 0:01:43]} Ra4 {[%emt 0:00:57]} 38. Qc3 {[%emt 0:00:56]} Nb2 {[%emt 0:01:12]} 39. Rc1 {[%emt 0:01:18]} Rc4 {[%emt 0:01:06]} 40. Qd2 {[%emt 0:00:29]} b4 {[%emt 0:00:53]} 41. Rxc4 {[%emt 0:31:00]} Nxc4 {[%emt 0:31:39]} 42. Qxb4 {[%emt 0:00:53]} Kf7 {[%emt 0:05:12]} 43. Rc3 {[%emt 0:02:40]} Nd2 {[%emt 0:13:41]} 44. Rxa3 {[%emt 0:00:00]} Nxf3+ {[%emt 0:00:00]} 45. gxf3 {[%emt 0:00:00]} Qxf3 {[%emt 0:00:00]} 46. Qc4+ {[%emt 0:00:00]} Kg6 {[%emt 0:00:00]} 47. Qf1 {[%emt 0:00:00]} Qh5 {[%emt 0:00:00]} 48. Ra6 {[%emt 0:00:00]} Kf7 {[%emt 0:00:00]} 49. Rxc6 {[%emt 0:06:58]} Qg5+ {[%emt 0:00:00]} 50. Kh2 {[%emt 0:00:00]} Qxe3 {[%emt 0:00:00]} 51. Qc4+ {[%emt 0:00:00]} Kg6 {[%emt 0:00:00]} 52. Qc2+ {[%emt 0:00:00]} Kh6 {[%emt 0:00:00]} 53. Qc1 {[%emt 0:00:00]} Qxc1 {[%emt 0:00:00]} 54. Rxc1 {[%emt 0:00:00]} Rxd4 {[%emt 0:00:00]} 55. Ra1 {[%emt 0:00:00]} Ra4 {[%emt 0:00:00]} 56. a3 {[%emt 0:00:00]} g5 {[%emt 0:00:00]} 57. Kg3 {[%emt 0:00:00]} Kg6 {[%emt 0:00:00]} 58. Ra2 {[%emt 0:00:00]} h5 {[%emt 0:00:00]} 59. Kf3 {[%emt 0:00:00]} Kf5 {[%emt 0:00:00]} 60. Kg3 {[%emt 0:00:00]} Ke5 {[%emt 0:00:00]} 61. Kg2 {[%emt 0:00:00]} f5 {[%emt 0:00:00]} 62. Kg3 {[%emt 0:00:00]} Kd5 {[%emt 0:00:00]} 63. Kf3 {[%emt 0:00:00]} Kc5 {[%emt 0:00:00]} 64. Ra1 {[%emt 0:00:00]} Kc4 {[%emt 0:00:00]} 65. Ke3 {[%emt 0:00:00]} Kb3 {[%emt 0:00:00]} 66. Rg1 {[%emt 0:00:00]} Re4+ {[%emt 0:00:00]} 67. Kf3 {[%emt 0:00:00]} g4+ {[%emt 0:00:00]} 68. hxg4 {[%emt 0:00:00]} hxg4+ {[%emt 0:00:00]} 69. Kg3 {[%emt 0:00:00]} Re3+ {[%emt 0:00:00]} 70. Kf2 {[%emt 0:00:00]} Rf3+ {[%emt 0:00:00]} 71. Kg2 {[%emt 0:00:00]} Kxa3 {[%emt 0:00:00]} 72. Rb1 {[%emt 0:00:00]} Rb3 {[%emt 0:00:00]} 73. Rf1 {[%emt 0:00:00]} Rb5 {[%emt 0:00:00]} 74. Kg3 {[%emt 0:00:00]} Kb2 {[%emt 0:00:00]} 75. Rf2+ {[%emt 0:00:15]} Kc3 {[%emt 0:00:00]} 76. Kf4 {[%emt 0:00:13]} Kd3 {[%emt 0:00:00]} 77. Kg3 {[%emt 0:00:17]} Ke3 {[%emt 0:00:00]} 78. Rf4 {[%emt 0:00:24]} Rd5 {[%emt 0:00:00]} 79. Rf1 {[%emt 0:00:25]} Ke2 {[%emt 0:00:00]} 80. Rf4 {[%emt 0:00:11]} Rd3+ {[%emt 0:00:00]} 81. Kg2 {[%emt 0:00:22]} Rf3 {[%emt 0:01:31]} 82. Ra4 {[%emt 0:00:17]} f4 {[%emt 0:02:20]} 83. Rb4 {[%emt 0:00:20]} Rg3+ {[%emt 0:01:05]} 84. Kh2 {[%emt 0:00:17]} Rh3+ {[%emt 0:00:28]} 85. Kg2 {[%emt 0:00:14]} f3+ {[%emt 0:00:14]} 86. Kg1 {[%emt 0:00:04]} f2+ {[%emt 0:00:09]} 0-1

[Event "Lueneburg Open-B 2019"]
[Site "Lueneburg"]
[Date "2019.08.05"]
[Round "3.11"]
[White "Thomas, Andreas"]
[Black "Rempe, Janne"]
[Result "1/2-1/2"]
[ECO "C41"]
[WhiteElo "1726"]
[BlackElo "1594"]
[Annotator "NA"]
[PlyCount "28"]
[EventDate "2019.08.03"]
[EventType "swiss"]
[EventCountry "GER"]
[SourceTitle "playchess.com"]
[Source "ChessBase"]
[SourceQuality "1"]
[TimeControl "40/5400+30:1800+30"]

1. e4 {[%emt 1:30:30]} d6 {[%emt 0:00:00]} 2. d4 {[%emt 0:00:00]} Nf6 {[%emt 0:00:00]} 3. Nc3 {[%emt 0:00:00]} Nbd7 {[%emt 0:00:29]} 4. Nf3 {[%emt 0:00:00]} e5 {[%emt 0:01:39]} 5. Bc4 {[%emt 0:00:00]} Be7 {[%emt 0:01:05]} 6. Bg5 {[%emt 0:00:00]} c6 {[%emt 0:01:46]} 7. Bb3 {[%emt 0:00:00]} O-O {[%emt 0:01:15]} 8. O-O {[%emt 0:03:30]} Re8 {[%emt 1:27:46]} 9. Bh4 {[%emt 0:00:00]} b5 {[%emt 0:00:00]} 10. a3 {[%emt 0:00:00]} Qc7 {[%emt 0:00:00]} 11. Ng5 {[%emt 0:00:00]} Rf8 {[%emt 0:00:00]} 12. Nf3 {[%emt 0:00:00]} Re8 {[%emt 0:00:00]} 13. Ng5 {[%emt 0:00:00]} Rf8 {[%emt 0:00:00]} 14. Nf3 {[%emt 0:00:00]} Re8 {[%emt 0:03:00]} 1/2-1/2

[Event "Lueneburg Open-B 2019"]
[Site "Lueneburg"]
[Date "2019.08.05"]
[Round "3.12"]
[White "Goldmann, David"]
[Black "Gerdau, Niklas"]
[Result "0-1"]
[ECO "B24"]
[WhiteElo "1403"]
[BlackElo "1704"]
[Annotator "NA"]
[PlyCount "124"]
[EventDate "2019.08.03"]
[EventType "swiss"]
[EventCountry "GER"]
[SourceTitle "playchess.com"]
[Source "ChessBase"]
[SourceQuality "1"]
[TimeControl "40/5400+30:1800+30"]

1. e4 {[%emt 0:00:09]} c5 {[%emt 0:00:00]} 2. Nc3 {[%emt 0:01:26]} d6 {[%emt 0:00:30]} 3. g3 {[%emt 0:02:42]} Nf6 {[%emt 0:00:28]} 4. Bg2 {[%emt 0:01:00]} Nc6 {[%emt 0:00:58]} 5. Nge2 {[%emt 0:01:03]} Rb8 {[%emt 0:01:26]} 6. a4 {[%emt 0:02:59]} e6 {[%emt 0:03:36]} 7. f4 {[%emt 0:01:21]} d5 {[%emt 0:04:21]} 8. e5 {[%emt 0:00:09]} Nd7 {[%emt 0:01:05]} 9. O-O {[%emt 1:23:41]} a6 {[%emt 0:03:18]} 10. b3 {[%emt 0:00:00]} Be7 {[%emt 0:03:20]} 11. Ba3 {[%emt 0:00:00]} b5 {[%emt 0:00:27]} 12. Na2 {[%emt 0:00:00]} Qb6 {[%emt 0:05:42]} 13. Kh1 {[%emt 0:00:00]} b4 {[%emt 0:01:41]} 14. Bb2 {[%emt 0:00:00]} h5 {[%emt 0:07:08]} 15. h4 {[%emt 0:00:00]} a5 {[%emt 0:02:21]} 16. Re1 {[%emt 0:00:00]} c4 {[%emt 0:04:59]} 17. f5 {[%emt 0:00:00]} Ndxe5 {[%emt 0:03:56]} 18. Nf4 {[%emt 0:00:00]} Ng4 {[%emt 0:01:13]} 19. Nh3 {[%emt 0:00:00]} Nd4 {[%emt 0:04:30]} 20. bxc4 {[%emt 0:00:00]} Nxf5 {[%emt 0:02:46]} 21. Qf3 {[%emt 0:00:00]} Qc7 {[%emt 0:17:49]} 22. Nf4 {[%emt 0:00:00]} Bb7 {[%emt 0:06:22]} 23. cxd5 {[%emt 0:00:00]} Bxd5 {[%emt 0:01:32]} 24. Nxd5 {[%emt 0:00:00]} Nxg3+ {[%emt 0:01:17]} 25. Kg1 {[%emt 0:00:00]} exd5 {[%emt 0:03:06]} 26. Qxd5 {[%emt 0:00:00]} O-O {[%emt 0:00:21]} 27. Bh3 {[%emt 0:00:00]} Bxh4 {[%emt 0:05:38]} 28. Bxg4 {[%emt 0:00:00]} hxg4 {[%emt 0:00:35]} 29. Be5 {[%emt 0:00:00]} Qb6+ {[%emt 0:00:05]} 30. Bd4 {[%emt 0:00:00]} Qb7 {[%emt 0:03:03]} 31. Qxb7 {[%emt 0:00:00]} Rxb7 {[%emt 0:00:05]} 32. Bf2 {[%emt 0:00:00]} Nf5 {[%emt 0:00:25]} 33. Re5 {[%emt 0:00:00]} Bf6 {[%emt 0:00:23]} 34. Rxf5 {[%emt 0:00:00]} Bxa1 {[%emt 0:00:07]} 35. Rxa5 {[%emt 0:00:00]} Rd8 {[%emt 0:01:20]} 36. Be3 {[%emt 0:00:00]} Bd4 {[%emt 0:00:09]} 37. Rg5 {[%emt 0:00:00]} Bxe3+ {[%emt 0:00:26]} 38. dxe3 {[%emt 0:00:00]} Rd1+ {[%emt 0:00:18]} 39. Kg2 {[%emt 0:00:00]} Ra1 {[%emt 0:00:07]} 40. Nxb4 {[%emt 0:00:00]} Rxb4 {[%emt 0:00:07]} 41. a5 {[%emt 0:00:00]} Ra2 {[%emt 0:30:12]} 42. Kg3 {[%emt 0:00:00]} Rxc2 {[%emt 0:00:08]} 43. Rd5 {[%emt 0:00:00]} Ra2 {[%emt 0:00:10]} 44. Rd8+ {[%emt 0:00:00]} Kh7 {[%emt 0:00:08]} 45. Rd5 {[%emt 0:00:00]} Rba4 {[%emt 0:00:09]} 46. Rh5+ {[%emt 0:00:00]} Kg8 {[%emt 0:00:10]} 47. Rb5 {[%emt 0:00:00]} Rxa5 {[%emt 0:00:05]} 48. Rb8+ {[%emt 0:00:00]} Kh7 {[%emt 0:00:07]} 49. Kxg4 {[%emt 0:00:00]} Kg6 {[%emt 0:00:41]} 50. Rb6+ {[%emt 0:00:00]} f6 {[%emt 0:00:07]} 51. Kf3 {[%emt 0:00:00]} Re5 {[%emt 0:00:08]} 52. Rb3 {[%emt 0:00:00]} Ra4 {[%emt 0:00:12]} 53. Rd3 {[%emt 0:00:00]} Kf5 {[%emt 0:00:13]} 54. Rb3 {[%emt 0:00:00]} Rae4 {[%emt 0:00:12]} 55. Rd3 {[%emt 0:00:00]} g5 {[%emt 0:00:17]} 56. Rb3 {[%emt 0:00:00]} g4+ {[%emt 0:00:09]} 57. Ke2 {[%emt 0:00:00]} g3 {[%emt 0:00:10]} 58. Kf3 {[%emt 0:00:00]} Rxe3+ {[%emt 0:00:11]} 59. Rxe3 {[%emt 0:00:00]} Rxe3+ 60. Kxe3 {[%emt 0:00:00]} Kg4 {[%emt 0:00:25]} 61. Ke2 {[%emt 0:00:00]} Kh3 {[%emt 0:00:12]} 62. Kf1 {[%emt 0:00:00]} Kh2 {[%emt 0:00:12]} 0-1